bitfinex-derivatives/quotes_SOLF0:USTF0_20250817
["timestamp","ask_amount","ask_price","bid_price","bid_amount"]
[1755458436772,2.9,192.77,192.75,0.0352268]
[1755458439366,3.62721946,192.76,192.75,0.0352268]
[1755458439577,6.52721946,192.76,192.75,0.0352268]
[1755458440677,6.52721946,192.76,192.66,2.83]
[1755458440968,2.9,192.74,192.66,2.83]
[1755458441170,2.9,192.72,192.62,5.46412924]
[1755458441371,2.9,192.72,192.66,2.83]
[1755458442474,2.9,192.7,192.68,2.83]
[1755458443472,0.0340021,192.71,192.68,2.83]
[1755458443676,0.0340021,192.71,192.65,7.82172924]
[1755458443677,2.9,192.7,192.65,5.46412924]
[1755458443873,2.9,192.7,192.65,2.83]
[1755458444370,2.9,192.7,192.62,7.82252924]
[1755458444566,2.9,192.7,192.67,2.83]
[1755458445574,0.0340021,192.71,192.67,2.83]
[1755458445878,2.9,192.69,192.66,2.83]
[1755458446277,2.9,192.75,192.65,2.63412924]
[1755458446478,4.92728175,192.74,192.65,2.63412924]
[1755458446677,2.93665158,192.69,192.66,2.83]
[1755458446878,0.03665158,192.69,192.66,2.83]
[1755458447180,2.9,192.71,192.66,2.83]
[1755458447381,0.03432072,192.69,192.66,2.83]
[1755458447881,2.9,192.7,192.66,2.83]
[1755458448181,2.96,192.68,192.66,2.83]
[1755458448374,2.96,192.68,192.65,2.63412924]
[1755458448571,2.96,192.68,192.67,2.83]
[1755458448878,2.99271915,192.68,192.67,2.83]
[1755458449584,0.03271915,192.68,192.67,2.83]
[1755458449886,2.96,192.73,192.67,2.83]
[1755458450079,2.96,192.76,192.7,2.63412924]
[1755458450280,3.63221868,192.75,192.7,2.63412924]
[1755458450581,2.96,192.74,192.7,5.46412924]
[1755458451684,2.96,192.74,192.7,2.63412924]
[1755458451884,2.96,192.74,192.71,2.83]
[1755458453186,2.96,192.73,192.72,2.83]
[1755458453386,2.96,192.73,192.7,5.49916243]
[1755458453683,2.96,192.76,192.7,0.03503319]
[1755458453877,2.96,192.74,192.7,0.03503319]
[1755458454174,2.96,192.72,192.7,0.03503319]
[1755458455988,2.96,192.79,192.7,2.86503319]
[1755458456188,2.96,192.77,192.75,5.46412924]
[1755458456693,2.96,192.76,192.75,5.46412924]
[1755458456892,2.96,192.78,192.76,2.83]
[1755458457099,2.96,192.77,192.76,2.83]
[1755458457391,2.96,192.77,192.75,2.63412924]
[1755458457603,2.96,192.83,192.76,2.83]
[1755458457793,4.92778265,192.82,192.78,2.63412924]
[1755458458092,3.6312617,192.81,192.78,2.63412924]
[1755458458290,2.96,192.79,192.78,2.63412924]
[1755458458491,2.96,192.79,192.78,2.66761659]
[1755458460895,2.96,192.79,192.78,0.03348735]
[1755458462796,2.96,192.81,192.78,2.86348735]
[1755458462996,2.96,192.8,192.79,2.83]
[1755458463503,2.96,192.83,192.78,0.03348735]
[1755458463709,2.96,192.81,192.78,0.03348735]
[1755458464597,348.6,192.84,192.78,0.03348735]
[1755458464804,4.92731939,192.83,192.79,2.83]
[1755458465010,2.96,192.81,192.78,0.03348735]
[1755458465195,2.96,192.79,192.78,0.03348735]
[1755458465396,348.6,192.84,192.78,0.03348735]
[1755458465692,2.96,192.81,192.8,2.83]
[1755458465901,6.59086798,192.81,192.8,2.83]
[1755458467201,6.59086798,192.81,192.78,5.49761659]
[1755458467404,2.96,192.8,192.79,2.83]
[1755458468604,2.96,192.83,192.79,2.83]
[1755458468804,3.62969395,192.82,192.78,2.66761659]
[1755458469105,2.96,192.82,192.8,2.83]
[1755458469602,2.96,192.82,192.81,2.83]
[1755458469803,2.96,192.84,192.81,2.83]
[1755458470003,6.58922039,192.83,192.81,2.83]
[1755458470202,2.96,192.84,192.81,2.83]
[1755458470405,2.96,192.84,192.79,2.83]
[1755458472901,2.96,192.84,192.78,0.03348735]
[1755458473208,2.96,192.82,192.78,0.03348735]
[1755458473407,2.96,192.82,192.78,2.86348735]
[1755458474509,2.96,192.82,192.79,2.83]
[1755458476212,2.96,192.84,192.79,2.83]
[1755458476401,2.96,192.83,192.79,2.83]
[1755458476608,129.14,192.85,192.79,2.83]
[1755458476810,2.96,192.82,192.79,2.83]
[1755458477205,2.96,192.82,192.8,2.83]
[1755458477411,129.14,192.85,192.8,2.83]
[1755458477612,2.96,192.81,192.8,2.83]
[1755458479706,129.14,192.85,192.78,5.21768735]
[1755458479707,129.14,192.85,192.79,5.1839]
[1755458479901,129.14,192.85,192.8,2.82]
[1755458479902,2.81,192.83,192.8,2.82]
[1755458480101,2.81,192.83,192.8,2.63412924]
[1755458480509,2.81,192.83,192.82,2.82]
[1755458481905,2.81,192.83,192.81,5.1834]
[1755458481906,129.14,192.85,192.81,5.1834]
[1755458482104,2.81,192.83,192.81,2.82]
[1755458482310,129.14,192.85,192.78,2.85348735]
[1755458482311,2.81,192.84,192.78,2.85348735]
[1755458484210,2.81,192.84,192.78,8.03768735]
[1755458484918,2.81,192.84,192.78,2.85348735]
[1755458487918,2.81,192.84,192.78,0.03348735]
[1755458489227,3.62459174,192.83,192.78,0.03348735]
[1755458489423,2.81,192.82,192.78,2.85348735]
[1755458490020,2.81,192.82,192.78,0.03348735]
[1755458490221,2.81,192.82,192.79,2.82]
[1755458490420,2.81,192.81,192.79,2.82]
[1755458490626,2.81,192.81,192.8,2.82]
[1755458491719,2.81,192.81,192.78,0.03348735]
[1755458491916,2.81,192.8,192.79,2.82]
[1755458492226,2.81,192.84,192.79,2.82]
[1755458492432,3.63288167,192.83,192.79,2.82]
[1755458492624,2.81,192.82,192.79,2.82]
[1755458493427,2.81,192.82,192.78,0.03348735]
[1755458494036,2.81,192.82,192.78,2.85348735]
[1755458496533,3.6374241,192.81,192.78,2.85348735]
[1755458496720,129.14,192.85,192.78,2.85348735]
[1755458496921,2.81,192.79,192.78,2.85348735]
[1755458498336,2.81,192.79,192.78,0.03348735]
[1755458498530,6.44865657,192.79,192.78,0.03348735]
[1755458498733,7.74524019,192.79,192.78,0.03348735]
[1755458499835,12.03275641,192.79,192.78,0.03348735]
[1755458500730,5.44412924,192.78,192.68,2.85]
[1755458501031,5.44412924,192.78,192.64,2.63412924]
[1755458501032,2.81,192.76,192.66,2.85]
[1755458501234,2.81,192.74,192.66,2.85]
[1755458501437,2.81,192.72,192.65,2.85]
[1755458502033,2.81,192.69,192.65,2.85]
[1755458502945,2.84479353,192.7,192.66,2.85]
[1755458507241,0.03479353,192.7,192.68,2.85]
[1755458507631,2.81,192.72,192.68,2.85]
[1755458507835,3.02,192.76,192.7,2.63412924]
[1755458508041,3.02,192.76,192.71,2.79]
[1755458508339,0.03469077,192.75,192.71,2.79]
[1755458508538,3.02,192.74,192.71,2.79]
[1755458509141,0.03469077,192.75,192.71,2.79]
[1755458509339,3.02,192.73,192.72,2.79]
[1755458510241,3.02,192.72,192.71,2.79]
[1755458510743,3.02,192.72,192.7,2.63412924]
[1755458511051,0.03469077,192.75,192.7,2.63412924]
[1755458511245,3.02,192.71,192.7,5.42412924]
[1755458512140,3.02,192.71,192.68,2.79]
[1755458512342,3.02,192.74,192.68,2.79]
[1755458522961,3.02,192.74,192.66,2.79]
[1755458523255,3.02,192.74,192.63,5.42412924]
[1755458523455,3.02,192.72,192.64,2.79]
[1755458524343,0.03537924,192.7,192.64,2.79]
[1755458524545,3.02,192.69,192.64,2.79]
[1755458526160,3.02,192.69,192.64,7.9779]
[1755458526361,0.03537924,192.7,192.67,2.79]
[1755458526550,3.05537924,192.7,192.67,2.79]
[1755458526860,3.02,192.7,192.67,2.79]
[1755458527056,3.05865711,192.7,192.67,2.79]
[1755458528259,3.02,192.69,192.67,2.79]
[1755458528657,3.02,192.69,192.66,7.82132924]
[1755458528861,3.02,192.69,192.68,2.79]
[1755458529460,0.03865711,192.7,192.69,2.79]
[1755458529663,0.03865711,192.7,192.69,5.42412924]
[1755458530070,3.02,192.72,192.69,7.82052924]
[1755458530255,3.02,192.72,192.7,2.79]
[1755458530562,3.02,192.82,192.7,2.79]
[1755458530762,3.02,192.8,192.71,7.9761]
[1755458530961,3.02,192.78,192.71,7.9761]
[1755458531261,3.02,192.76,192.72,2.79]
[1755458531465,3.02,192.76,192.73,0.03273978]
[1755458531767,3.02,192.82,192.73,0.03273978]
[1755458531964,3.02,192.8,192.73,0.03273978]
[1755458532157,3.02,192.78,192.73,0.03273978]
[1755458532367,3.02,192.76,192.73,0.03273978]
[1755458540173,2.82,192.74,192.73,0.03273978]
[1755458542160,6.45723829,192.74,192.73,0.03273978]
[1755458542363,10.80024419,192.74,192.73,0.03273978]
[1755458545963,10.80024419,192.74,192.73,2.88273978]
[1755458546168,7.98024419,192.74,192.73,2.88273978]
[1755458546570,10.80024419,192.74,192.73,2.88273978]
[1755458546774,3.63723829,192.74,192.73,2.88273978]
[1755458546969,9.60124077,192.84,192.73,2.88273978]
[1755458546970,2.82,192.79,192.73,2.88273978]
[1755458547178,8.27361176,192.78,192.76,2.85]
[1755458547376,2.82,192.79,192.76,2.85]
[1755458547969,2.82,192.79,192.76,2.88623359]
[1755458548380,134.62508904,192.86,192.76,5.22073359]
[1755458548576,2.82,192.84,192.77,2.85]
[1755458548876,2.82,192.82,192.77,2.85]
[1755458549073,2.82,192.8,192.77,2.85]
[1755458549272,2.82,192.79,192.78,2.85]
[1755458549878,2.82,192.79,192.75,7.81892924]
[1755458550077,2.82,192.85,192.77,0.03875897]
[1755458550279,5.45225168,192.84,192.77,0.03875897]
[1755458550578,2.82,192.82,192.77,0.03875897]
[1755458550776,2.82,192.8,192.77,0.03875897]
[1755458552275,2.82,192.8,192.77,2.88875897]
[1755458554376,2.82,192.8,192.77,0.03875897]
[1755458554576,1.29659192,192.79,192.77,0.03875897]
[1755458554882,2.82,192.78,192.77,0.03875897]
[1755458562286,4.11664661,192.78,192.77,0.03875897]
[1755458562482,8.26739362,192.78,192.77,0.03875897]
[1755458564788,8.26750313,192.78,192.77,0.03875897]
[1755458567792,6.95960932,192.78,192.77,0.03875897]
[1755458567990,8.25640806,192.78,192.77,0.03875897]
[1755458568386,8.25668082,192.78,192.77,0.03875897]
[1755458568592,8.25701934,192.78,192.77,0.03875897]
[1755458572395,8.25701934,192.78,192.77,2.88875897]
[1755458572998,5.43701934,192.78,192.77,2.88875897]
[1755458573294,1.29679874,192.78,192.77,2.88875897]
[1755458573496,4.28679874,192.78,192.77,2.88875897]
[1755458575497,8.43211905,192.78,192.77,2.88875897]
[1755458576496,2.99,192.85,192.77,5.52288821]
[1755458576796,2.99,192.85,192.78,2.85]
[1755458576997,5.44260628,192.84,192.78,2.85]
[1755458577185,5.44260628,192.83,192.78,2.85]
[1755458577385,1.29638449,192.82,192.78,2.85]
[1755458577594,2.99,192.84,192.8,2.63412924]
[1755458577799,2.99,192.89,192.83,2.63412924]
[1755458577999,204.28995635,192.91,192.84,2.85]
[1755458578000,4.2862301,192.88,192.84,2.85]
[1755458578186,1.2962301,192.87,192.84,2.85]
[1755458578389,1.2962301,192.86,192.84,2.85]
[1755458578587,128.62,192.91,192.84,2.85]
[1755458578794,1.29606861,192.9,192.84,2.85]
[1755458578995,128.62,192.91,192.84,2.85]
[1755458579200,4.2858979,192.9,192.84,2.85]
[1755458579499,2.99,192.9,192.84,2.85]
[1755458580691,2.99,192.9,192.83,0.03530427]
[1755458580900,2.99,192.88,192.83,0.03530427]
[1755458581100,2.99,192.86,192.83,0.03530427]
[1755458582999,2.63412924,192.89,192.83,0.03530427]
[1755458583000,2.99,192.84,192.83,0.03530427]
[1755458585000,131.53,192.84,192.71,2.89]
[1755458585203,2.99,192.83,192.74,2.89]
[1755458585603,2.99,192.81,192.74,2.89]
[1755458587001,0.03479429,192.79,192.74,2.89]
[1755458587207,2.99,192.78,192.74,2.89]
[1755458587402,0.03479429,192.79,192.73,2.63412924]
[1755458587607,2.99,192.78,192.74,2.89]
[1755458588206,2.99,192.78,192.75,2.89]
[1755458588608,0.03479429,192.79,192.75,2.89]
[1755458588808,2.99,192.77,192.75,2.89]
[1755458589511,2.99,192.76,192.75,2.89]
[1755458592208,2.99,192.78,192.71,2.89]
[1755458592408,0.03479429,192.79,192.74,2.89]
[1755458592814,2.99,192.81,192.74,2.89]
[1755458593113,2.99,192.81,192.73,2.63412924]
[1755458593114,2.99,192.81,192.75,5.185]
[1755458593310,2.99,192.8,192.76,2.89]
[1755458593714,2.99,192.83,192.76,2.89]
[1755458594412,0.03348948,192.81,192.75,2.63412924]
[1755458594617,2.99,192.8,192.76,2.89]
[1755458594818,2.99,192.8,192.75,2.63412924]
[1755458595010,2.99,192.8,192.77,2.89]
[1755458595405,2.99,192.79,192.78,2.89]
[1755458595618,2.99,192.8,192.79,2.89]
[1755458597620,3.02348948,192.81,192.76,2.82]
[1755458598221,3.02348948,192.81,192.77,5.1843]
[1755458598421,3.02348948,192.81,192.78,2.82]
[1755458598613,0.03348948,192.81,192.78,5.45412924]
[1755458598809,0.03348948,192.81,192.79,2.82]
[1755458599722,1.29638744,192.84,192.79,2.82]
[1755458599926,348.52,192.92,192.82,2.82]
[1755458600217,1.29607766,192.91,192.86,2.82]
[1755458600518,2.88,192.89,192.87,2.82]
[1755458600722,2.88,192.89,192.88,2.82]
[1755458601425,2.88,192.94,192.88,2.82]
[1755458606028,2.88,192.94,192.88,7.81562924]
[1755458606224,2.88,192.97,192.88,2.63412924]
[1755458606423,2.88,192.97,192.86,0.03902577]
[1755458606626,2.88,192.97,192.85,5.45412924]
[1755458606922,2.88,192.97,192.9,0.03634012]
[1755458609024,2.88,192.96,192.9,0.03634012]
[1755458610934,2.63412924,192.94,192.9,0.03634012]
[1755458611129,2.88,192.93,192.9,0.03634012]
[1755458611434,131.24,192.93,192.9,0.03634012]
[1755458611932,2.88,192.92,192.9,0.03634012]
[1755458616935,2.88,192.92,192.9,2.85634012]
[1755458617234,2.88,192.92,192.91,2.82]
[1755458619331,2.88,192.92,192.9,0.03634012]
[1755458620935,128.36,192.93,192.9,0.03634012]
[1755458621135,2.88,192.92,192.9,2.85634012]
[1755458621333,2.88,192.91,192.9,2.85634012]
[1755458622338,128.36,192.93,192.9,0.03634012]
[1755458622533,2.88,192.92,192.91,2.82]
[1755458623038,2.88,192.92,192.9,0.03634012]
[1755458623230,2.88,192.91,192.9,2.85634012]
[1755458624239,131.24,192.93,192.9,2.85634012]
[1755458624540,2.88,192.95,192.9,2.85634012]
[1755458625135,128.3,192.97,192.91,2.63412924]
[1755458625328,131.18,192.97,192.92,2.82]
[1755458625738,2.88,192.96,192.92,2.82]
[1755458626038,128.3,192.97,192.92,2.82]
[1755458626239,131.18,192.97,192.92,2.82]
[1755458626436,2.88,192.96,192.92,2.82]
[1755458627534,128.3,192.97,192.92,5.1804]
[1755458627740,128.3,192.97,192.93,2.89]
[1755458627741,131.22,192.97,192.93,2.89]
[1755458628134,2.92,192.95,192.94,2.89]
[1755458628530,131.22,192.97,192.94,2.89]
[1755458628735,2.92,192.96,192.95,2.89]
[1755458630541,2.92,192.96,192.94,0.03542133]
[1755458630741,2.92,192.95,192.94,2.92542133]
[1755458631531,128.3,192.97,192.95,2.89]
[1755458631736,131.22,192.97,192.95,2.89]
[1755458632145,131.22,192.97,192.96,2.89]
[1755458634452,2.92,192.96,192.95,2.89]
[1755458634636,2.92,192.96,192.94,0.03542133]
[1755458639643,128.3,192.97,192.94,0.03542133]
[1755458639839,2.92,192.95,192.94,0.03542133]
[1755458642251,4.21554774,192.95,192.94,0.03542133]
[1755458642551,1.29554774,192.95,192.94,0.03542133]
[1755458642748,4.21554774,192.95,192.94,0.03542133]
[1755458646053,8.40657581,192.95,192.94,0.03542133]
[1755458648046,2.92,192.95,192.94,0.03542133]
[1755458648245,8.40723305,192.95,192.94,0.03542133]
[1755458648851,8.4074008,192.95,192.94,0.03542133]
[1755458651357,8.40997597,192.95,192.94,2.92542133]
[1755458652060,4.1943973,192.95,192.94,2.92542133]
[1755458654648,7.1143973,192.95,192.94,2.92542133]
[1755458655759,7.1143973,192.95,192.94,0.03542133]
[1755458655954,8.40987898,192.95,192.94,0.03542133]
[1755458656757,8.40987898,192.95,192.94,2.92542133]
[1755458656959,7.1143973,192.95,192.94,2.92542133]
[1755458657162,2.92,192.95,192.94,2.92542133]
[1755458657458,7.14372681,192.95,192.94,2.92542133]
[1755458660468,7.1450031,192.95,192.94,2.92542133]
[1755458661570,8.44047295,192.95,192.94,2.92542133]
[1755458662170,8.44047295,192.95,192.94,0.03542133]
[1755458663269,4.21546985,192.95,192.94,0.03542133]
[1755458663669,8.44159768,192.95,192.94,0.03542133]
[1755458666474,8.44129348,192.95,192.94,0.03542133]
[1755458667077,8.44131718,192.95,192.94,0.03542133]
[1755458667376,8.44131718,192.95,192.86,2.88]
[1755458667377,3.04,192.94,192.86,2.88]
[1755458667675,3.04,192.92,192.86,2.88]
[1755458667879,3.04,192.9,192.86,2.88]
[1755458668272,86.5774415,194.05,192.82,5.81879258]
[1755458668273,128.08,192.89,192.82,2.63412924]
[1755458668571,3.04,192.88,192.83,2.88]
[1755458668878,3.04,192.87,192.83,2.88]
[1755458669080,4.62139778,192.86,192.83,2.88]
[1755458669274,3.04,192.87,192.83,2.88]
[1755458669669,4.62030788,192.86,192.83,2.88]
[1755458669869,3.04,192.87,192.83,2.88]
[1755458670068,4.62030788,192.86,192.83,2.88]
[1755458670269,3.04,192.87,192.83,2.88]
[1755458670878,128.08,192.89,192.83,2.88]
[1755458671066,8.29111394,192.88,192.83,2.88]
[1755458671273,3.04,192.86,192.84,2.88]
[1755458671578,3.04,192.84,192.82,2.88]
[1755458671778,3.04,192.84,192.83,2.88]
[1755458671980,128.08,192.89,192.83,2.88]
[1755458672275,3.04,192.85,192.84,2.88]
[1755458672479,3.07510619,192.85,192.84,2.88]
[1755458672875,7.69304271,192.85,192.84,2.88]
[1755458673775,4.65304271,192.85,192.8,2.63412924]
[1755458673980,3.04,192.84,192.81,2.88]
[1755458676580,0.03510619,192.85,192.81,2.88]
[1755458677083,0.03510619,192.85,192.84,2.88]
[1755458677582,3.04,192.87,192.84,2.88]
[1755458677782,0.03354888,192.86,192.84,2.88]
[1755458678384,0.03354888,192.86,192.83,7.81692924]
[1755458678385,0.03354888,192.86,192.85,2.88]
[1755458678583,3.04,192.95,192.87,2.88]
[1755458678777,3.04,192.93,192.92,2.88]
[1755458678974,8.2987961,192.93,192.91,5.51412924]
[1755458679185,3.04,192.92,192.91,5.51412924]
[1755458679984,3.04,192.92,192.91,2.63412924]
[1755458681785,3.04,192.92,192.91,5.51412924]
[1755458682285,3.04,192.92,192.91,2.63412924]
[1755458682683,3.04,192.92,192.9,0.0334088]
[1755458685489,3.04,192.92,192.9,2.9134088]
[1755458686690,3.04,192.91,192.9,2.9134088]
[1755458689397,3.04,192.91,192.9,0.0334088]
[1755458690796,3.04,192.91,192.9,2.9134088]
[1755458691100,3.04,192.91,192.9,0.0334088]
[1755458700309,2.93,192.94,192.8,2.63412924]
[1755458700513,2.93,192.9,192.79,2.9]
[1755458700708,9.33147643,192.89,192.79,2.9]
[1755458701008,2.93,192.87,192.79,2.9]
[1755458701203,2.93,192.85,192.79,2.9]
[1755458701402,4.74447057,192.84,192.79,2.9]
[1755458701604,2.93,192.82,192.78,2.9]
[1755458701803,2.93,192.82,192.79,2.9]
[1755458702401,2.93,192.82,192.77,5.53412924]
[1755458702597,2.93,192.82,192.78,2.9]
[1755458703206,2.96700669,192.84,192.81,2.9]
[1755458703410,0.03700669,192.84,192.81,2.9]
[1755458703607,127.96,192.91,192.83,2.63412924]
[1755458703808,2.93,192.89,192.84,2.9]
[1755458704013,8.298986,192.88,192.83,7.81692924]
[1755458704212,2.93,192.86,192.85,2.9]
[1755458704415,7.54836969,192.86,192.85,2.9]
[1755458704613,2.93,192.85,192.83,5.53412924]
[1755458704814,2.93,192.85,192.83,2.63412924]
[1755458705119,2.93,192.87,192.8,2.63412924]
[1755458705314,2.93,192.85,192.81,2.9]
[1755458705505,4.61656859,192.86,192.81,2.9]
[1755458705506,2.93,192.87,192.82,5.183]
[1755458705702,2.93,192.86,192.83,2.63412924]
[1755458705913,2.93,192.86,192.84,2.9]
[1755458706214,0.03584207,192.86,192.84,2.9]
[1755458706510,0.03584207,192.86,192.85,5.1823]
[1755458706710,0.03584207,192.86,192.85,8.0823]
[1755458707710,0.03584207,192.86,192.85,2.9]
[1755458708012,2.93,192.85,192.84,2.9]
[1755458708814,2.93,192.85,192.82,2.9]
[1755458709714,127.96,192.91,192.83,2.9]
[1755458710016,2.93,192.84,192.83,2.9]
[1755458710717,2.93,192.83,192.82,2.9]
[1755458712013,2.93,192.83,192.81,2.63412924]
[1755458712210,2.93,192.83,192.79,2.9]
[1755458713912,2.93,192.83,192.77,2.63412924]
[1755458714113,2.93,192.83,192.77,5.53412924]
[1755458714822,2.93,192.83,192.77,2.63412924]
[1755458715920,2.93,192.81,192.75,2.9]
[1755458716619,0.03622862,192.8,192.75,2.9]
[1755458716821,2.93,192.79,192.74,2.63412924]
[1755458717012,2.93,192.79,192.76,2.9]
[1755458717415,2.93,192.78,192.77,2.9]
[1755458718818,2.93,192.78,192.75,2.93]
[1755458719020,2.93,192.78,192.74,2.63412924]
[1755458719221,2.93,192.78,192.72,2.93]
[1755458719621,2.93,192.78,192.69,2.93]
[1755458720123,2.93,192.78,192.69,5.56412924]
[1755458720324,2.93,192.78,192.7,2.93]
[1755458720725,2.63412924,192.82,192.7,2.93]
[1755458720726,2.87,192.74,192.7,2.93]
[1755458720920,2.87,192.74,192.69,5.56412924]
[1755458721119,2.87,192.74,192.69,2.63412924]
[1755458722027,2.87,192.74,192.69,5.56412924]
[1755458722218,2.87,192.74,192.7,2.93]
[1755458725529,2.87,192.74,192.69,5.55412924]
[1755458726326,2.87,192.74,192.69,2.63412924]
[1755458727827,2.87,192.74,192.68,2.92]
[1755458728127,2.87,192.74,192.66,2.63412924]
[1755458728324,2.87,192.74,192.64,8.1079]
[1755458728524,2.87,192.74,192.65,2.92]
[1755458729539,2.87,192.72,192.65,2.92]
[1755458729830,2.87,192.7,192.65,2.92]
[1755458730025,2.87,192.7,192.63,7.82222924]
[1755458730221,2.87,192.7,192.64,2.92]
[1755458731633,2.87,192.7,192.66,2.92]
[1755458732529,0.03301065,192.71,192.63,2.63412924]
[1755458732733,0.03301065,192.71,192.55,11.28365797]
[1755458732734,2.87,192.7,192.67,2.92]
[1755458733232,2.87,192.7,192.68,2.92]
[1755458733433,2.90668014,192.7,192.69,2.92]
[1755458736632,2.90668014,192.7,192.66,5.1874]
[1755458736826,0.03668014,192.7,192.67,2.63412924]
[1755458737030,2.87,192.69,192.68,2.92]
[1755458742340,2.90668014,192.7,192.69,2.92]
[1755458743542,2.90668014,192.7,192.67,2.63412924]
[1755458743741,2.90668014,192.7,192.68,2.92]
[1755458744037,0.03668014,192.7,192.67,7.82122924]
[1755458744241,2.87,192.69,192.68,2.92]
[1755458745241,2.87,192.69,192.67,2.63412924]
[1755458745442,2.87,192.69,192.64,2.63412924]
[1755458745639,4.64546213,192.68,192.64,2.63412924]
[1755458745839,2.87,192.69,192.64,2.63412924]
[1755458746035,4.64546213,192.68,192.64,2.63412924]
[1755458746231,2.87,192.66,192.61,2.63412924]
[1755458746737,2.87,192.66,192.61,5.55412924]
[1755458746936,0.03544257,192.65,192.61,5.55412924]
[1755458747441,2.87,192.64,192.61,5.55412924]
[1755458747830,2.87,192.64,192.62,2.93]
[1755458748238,2.92,192.63,192.62,2.93]
[1755458748739,2.95544257,192.65,192.62,2.93]
[1755458748946,0.03544257,192.65,192.62,2.93]
[1755458749239,2.92,192.69,192.64,2.63412924]
[1755458749437,2.92,192.69,192.68,2.63412924]
[1755458750039,2.92,192.69,192.68,5.56412924]
[1755458751845,2.92,192.69,192.67,0.03393821]
[1755458753746,2.63412924,192.77,192.67,0.03393821]
[1755458754045,2.92,192.75,192.67,0.03393821]
[1755458754345,2.63412924,192.77,192.65,2.63412924]
[1755458754346,2.92,192.73,192.65,2.63412924]
[1755458754545,4.65097948,192.72,192.69,0.03708356]
[1755458754746,2.92,192.7,192.69,0.03708356]
[1755458754946,7.57097948,192.7,192.69,0.03708356]
[1755458756140,7.57097948,192.7,192.69,2.96708356]
[1755458756638,7.57097948,192.7,192.69,0.03708356]
[1755458757448,7.58128161,192.7,192.69,0.03708356]
[1755458758039,7.58258367,192.7,192.69,0.03708356]
[1755458763348,2.92,192.74,192.69,2.96708356]
[1755458763647,4.67542065,192.73,192.69,0.03708356]
[1755458763854,2.92,192.81,192.71,5.56412924]
[1755458764150,2.92,192.79,192.76,2.93]
[1755458764352,90.82665713,192.82,192.78,2.63412924]
[1755458764568,3.67346482,192.81,192.8,2.63412924]
[1755458764745,3.67346482,192.81,192.8,5.56412924]
[1755458766246,136.27921828,192.91,192.8,2.63412924]
[1755458766440,2.92,192.83,192.81,2.93]
[1755458766645,3.66961625,192.82,192.81,2.93]
[1755458766951,6.58961625,192.82,192.81,2.93]
[1755458768249,2.92,192.82,192.81,2.93]
[1755458768848,6.58611906,192.82,192.8,0.03442461]
[1755458769151,6.58611906,192.81,192.8,0.03442461]
[1755458770055,2.92,192.81,192.8,0.03442461]
[1755458770445,6.58421235,192.81,192.8,0.03442461]
[1755458771657,6.58421235,192.81,192.66,2.93]
[1755458771658,2.92,192.8,192.66,2.93]
[1755458771858,2.92,192.78,192.71,5.59412924]
[1755458772054,2.92,192.78,192.72,2.96]
[1755458772648,3.66263161,192.77,192.7,2.96]
[1755458772853,2.92,192.76,192.69,2.96]
[1755458774051,0.03350711,192.74,192.7,2.96]
[1755458774258,2.92,192.73,192.7,2.96]